fUST/lending_fUST_20260407
["ID","MTS","AMOUNT","RATE_DAILY","PERIOD"]
[419909253,1775497839125,-151.0,0.00021918,2]
[419909255,1775497839134,-151.0,0.00021918,2]
[419909257,1775497839144,-151.0,0.00021918,2]
[419909259,1775497839153,-151.0,0.00021918,2]
[419909261,1775497839162,-151.0,0.00021918,2]
[419909263,1775497839171,-151.0,0.00021918,2]
[419909265,1775497839181,-151.0,0.00021918,2]
[419909267,1775497839190,-151.0,0.00021918,2]
[419909269,1775497839199,-151.0,0.00021918,2]
[419909271,1775497839208,-151.0,0.00021918,2]
[419909273,1775497839217,-151.0,0.00021918,2]
[419909275,1775497839226,-213.210786,0.00021918,2]
[419909277,1775497839237,-213.210786,0.00021918,2]
[419909279,1775497839247,-213.210786,0.00021918,2]
[419909281,1775497839256,-213.210786,0.00021918,2]
[419909283,1775497839265,-151.0,0.00021918,2]
[419909285,1775497839276,-151.0,0.00021918,2]
[419909288,1775497839286,-200.000396,0.00021918,2]
[419909290,1775497839296,-200.000396,0.00021918,2]
[419909291,1775497839306,-200.000396,0.00021918,2]
[419909293,1775497839315,-200.000396,0.00021918,2]
[419909295,1775497839325,-153.0,0.00022,2]
[419909297,1775497839334,-158.0,0.00022,2]
[419909299,1775497839343,-267.0,0.00022,2]
[419909301,1775497839352,-151.0,0.00022175,2]
[419909303,1775497839361,-151.0,0.00022175,2]
[419909305,1775497839370,-151.0,0.00022175,2]
[419909307,1775497839379,-213.210786,0.00022175,2]
[419909309,1775497839389,-213.210786,0.00022175,2]
[419909311,1775497839398,-213.210786,0.00022175,2]
[419909313,1775497839407,-213.210786,0.00022175,2]
[419909315,1775497839416,-151.0,0.00022175,2]
[419909317,1775497839426,-200.000396,0.00022175,2]
[419909319,1775497839435,-200.000396,0.00022175,2]
[419909321,1775497839444,-200.000396,0.00022175,2]
[419909323,1775497839454,-200.000396,0.00022175,2]
[419909325,1775497839463,-3739.31486745,0.00022175,60]
[419909327,1775497839473,-1576.42642021,0.00022175,60]
[419909329,1775497839482,-151.0,0.00022479,2]
[419909331,1775497839491,-151.0,0.00022479,2]
[419909333,1775497839500,-151.0,0.00022479,2]
[419909335,1775497839510,-151.0,0.00022479,2]
[419909337,1775497839518,-151.0,0.00022479,2]
[419909339,1775497839528,-222.883376,0.00022479,2]
[419909341,1775497839537,-151.0,0.00022479,2]
[419909343,1775497839546,-151.0,0.00022479,2]
[419909345,1775497839556,-151.0,0.00022479,2]
[419909347,1775497839565,-291.713872,0.00022479,2]
[419909349,1775497839575,-213.210786,0.00022479,2]
[419909351,1775497839584,-213.210786,0.00022479,2]
[419909353,1775497839593,-213.210786,0.00022479,2]
[419909355,1775497839603,-213.210786,0.00022479,2]
[419909357,1775497839612,-3739.31486745,0.0002248,60]
[419909359,1775497839620,-1576.42642021,0.0002248,60]
[419909361,1775497839629,-633.8,0.00022711,10]
[419909363,1775497839638,-1000.0,0.0002272,10]
[419909365,1775497839647,-492.0,0.0002272,10]
[419909367,1775497839656,-2150.738,0.00022721,2]
[419909369,1775497839665,-3739.31486745,0.00022784,60]
[419909371,1775497839674,-1576.42642021,0.00022784,60]
[419909373,1775497839683,-2000.0,0.000228,2]
[419909375,1775497839691,-276.926558,0.000228,2]
[419909377,1775497839701,-200.000396,0.000228,2]
[419909379,1775497839709,-200.000396,0.000228,2]
[419909381,1775497839718,-200.000396,0.000228,2]
[419909383,1775497839727,-200.000396,0.000228,2]
[419909385,1775497839737,-398.36578012,0.00022978,2]
[419909387,1775497839746,-235.89258154,0.00022978,2]
[419909389,1775497839756,-571.83387429,0.00022978,2]
[419909391,1775497839764,-500.0,0.00022996,2]
[419909393,1775497839773,-238.63547208,0.00022996,2]
[419909395,1775497839783,-500.0,0.00022996,2]
[419909397,1775497839792,-500.0,0.00022996,2]
[419909399,1775497839802,-243.18907789,0.00022996,2]
[419909401,1775497839811,-500.0,0.00022996,2]
[419909403,1775497839820,-572.80085468,0.00022996,2]
[419909405,1775497839829,-500.0,0.00022996,2]
[419909406,1775497839838,-500.0,0.00022996,2]
[419909408,1775497839847,-500.0,0.00022996,2]
[419909410,1775497839856,-500.0,0.00022996,2]
[419909412,1775497839867,-500.0,0.00022996,2]
[419909414,1775497839875,-500.0,0.00022996,2]
[419909416,1775497839885,-500.0,0.00022996,2]
[419909418,1775497839894,-500.0,0.00022996,2]
[419909420,1775497839903,-500.0,0.00022996,2]
[419909422,1775497839912,-500.0,0.00022996,2]
[419909424,1775497839922,-500.0,0.00022996,2]
[419909426,1775497839931,-500.0,0.00022996,2]
[419909428,1775497839940,-500.0,0.00022996,2]
[419909450,1775497840134,-500.0,0.00022996,2]
[419909453,1775497840151,-213.210786,0.00022999,2]
[419909455,1775497840161,-213.210786,0.00022999,2]
[419909457,1775497840170,-213.210786,0.00022999,2]
[419909458,1775497840179,-213.210786,0.00022999,2]
[419909460,1775497840188,-2003.24,0.00023,2]
[419909462,1775497840197,-8501.0,0.00023,8]
[419909464,1775497840206,-153.0,0.00023,2]
[419909466,1775497840215,-158.0,0.00023,2]
[419909468,1775497840224,-200.000396,0.00023,2]
[419909470,1775497840233,-200.000396,0.00023,2]
[419909472,1775497840242,-200.000396,0.00023,2]
[419909474,1775497840251,-200.000396,0.00023,2]
[419909476,1775497840260,-267.0,0.00023,2]
[419909479,1775497840270,-151.0,0.00023044,2]
[419909481,1775497840280,-151.0,0.00023044,2]
[419909482,1775497840289,-398.36578012,0.00023044,2]
[419909484,1775497840298,-571.83387429,0.00023044,2]
[419909486,1775497840308,-3739.31486745,0.00023088,60]
[419909488,1775497840317,-1576.42642021,0.00023088,60]
[419909490,1775497840326,-151.0,0.00023088,2]
[419909492,1775497840335,-151.0,0.00023088,2]
[419909494,1775497840344,-151.0,0.00023088,2]
[419909496,1775497840354,-151.0,0.00023088,2]
[419909499,1775497840364,-151.0,0.00023088,2]
[419909501,1775497840374,-151.0,0.00023088,2]
[419909503,1775497840384,-151.0,0.00023088,2]
[419909505,1775497840393,-151.0,0.00023088,2]
[419909506,1775497840402,-151.0,0.00023088,2]
[419909508,1775497840412,-151.0,0.00023088,2]
[419909510,1775497840421,-151.0,0.00023088,2]
[419909512,1775497840431,-151.0,0.00023088,2]
[419909514,1775497840440,-151.0,0.00023088,2]
[419909516,1775497840449,-213.210786,0.00023088,2]
[419909518,1775497840458,-213.210786,0.00023088,2]
[419909520,1775497840468,-213.210786,0.00023088,2]
[419909522,1775497840478,-213.210776,0.00023088,2]
[419909524,1775497840487,-398.36578012,0.00023111,2]
[419909526,1775497840496,-571.83387429,0.00023111,2]
[419909528,1775497840506,-151.0,0.00023115,2]
[419909530,1775497840515,-180.627067,0.00023115,2]
[419909533,1775497840524,-200.000396,0.00023115,2]
[419909535,1775497840534,-200.000396,0.00023115,2]
[419909537,1775497840543,-200.000396,0.00023115,2]
[419909539,1775497840552,-200.000396,0.00023115,2]
[419909540,1775497840561,-270.83333333,0.00023115,2]
[419909542,1775497840571,-151.0,0.00023116,2]
[419909544,1775497840580,-151.0,0.00023116,2]
[419909546,1775497840589,-151.0,0.00023116,2]
[419909548,1775497840599,-151.0,0.00023116,2]
[419909550,1775497840608,-151.0,0.00023116,2]
[419909552,1775497840617,-151.0,0.00023116,2]
[419909554,1775497840626,-398.36578012,0.00023178,7]
[419909556,1775497840636,-571.83387429,0.00023178,7]
[419909558,1775497840645,-2000.0,0.000232,2]
[419909560,1775497840655,-398.36578012,0.00023245,7]
[419909562,1775497840664,-571.83387429,0.00023245,7]
[419909565,1775497840673,-235.89258154,0.00023254,7]
[419909566,1775497840682,-2230.315306,0.00023269,2]
[419909569,1775497840691,-209.35725637,0.00023273,2]
[419909571,1775497840702,-151.0,0.0002329,2]
[419909573,1775497840711,-151.0,0.0002329,2]
[419909575,1775497840720,-207.58169,0.0002329,2]
[419909576,1775497840729,-151.0,0.0002329,2]
[419909578,1775497840739,-170.984906,0.0002329,2]
[419909580,1775497840748,-151.0,0.0002329,2]
[419909582,1775497840757,-251.465687,0.0002329,2]
[419909584,1775497840766,-151.0,0.0002329,2]
[419909586,1775497840775,-151.0,0.0002329,2]
[419909588,1775497840785,-181.762668,0.0002329,2]
[419909590,1775497840794,-151.0,0.0002329,2]
[419909592,1775497840805,-151.0,0.0002329,2]
[419909594,1775497840815,-151.0,0.0002329,2]
[419909596,1775497840824,-151.0,0.0002329,2]
[419909598,1775497840834,-151.0,0.0002329,2]
[419909600,1775497840843,-1191.27292569,0.000233,16]
[419909602,1775497840852,-2695.61292214,0.000233,16]
[419909604,1775497840862,-2099.28631684,0.000233,16]
[419909606,1775497840876,-396.177,0.000233,16]
[419911014,1775498043686,-151.0,0.00013233,14]
[419911015,1775498045208,-136.84706217,0.00013233,14]
[419911016,1775498286192,1038.34,0.000328,120]
[419911017,1775498289889,1038.34,0.00032867,120]
[419911018,1775498292106,660.0,0.0003,120]
[419911019,1775498481173,-1656.11797688,0.00013426,2]
[419911025,1775498772801,584.96597675,0.00031215,120]
[419911142,1775499004506,239208.1749688,7.6e-05,2]
[419911155,1775499032528,-549.22641816,0.00013699,2]
[419911156,1775499032581,-450.77358184,0.00013699,2]
[419911157,1775499032591,-197.76015143,0.00017252,2]
[419911158,1775499032600,-80.5977351,0.0002,20]
[419911159,1775499032611,-346.51749702,0.0002,20]
[419911226,1775499038955,-9718.3732384,0.0002,20]
[419911228,1775499038967,-14367.51518706,0.0002,20]
[419911692,1775499047563,-8217.26521445,0.0002,20]
[419911693,1775499047574,-300.0,0.0002103,2]
[419911694,1775499047584,-419.77388564,0.00021031,2]
[419911695,1775499047593,-1677.41644703,0.00021031,2]
[419911696,1775499047602,-303.25644977,0.00021031,2]
[419911697,1775499047612,-1211.81277329,0.00021031,2]
[419911698,1775499047622,-179.9494428,0.00021192,2]
[419911699,1775499047632,-159.858172,0.00021656,2]
[419911700,1775499047641,-1411.461812,0.00022,2]
[419911701,1775499047652,-158.0,0.00022,2]
[419911702,1775499047661,-240.0,0.00022,2]
[419911703,1775499047670,-152.0,0.00022,2]
[419911704,1775499047679,-153.41643618,0.00022149,2]
[419911705,1775499047688,-158.0,0.00023,2]
[419911706,1775499047697,-240.0,0.00023,2]
[419911707,1775499047707,-270.83333333,0.00023,2]
[419911708,1775499047716,-290.04101033,0.00023,3]
[419911709,1775499047725,-436.0,0.00023048,2]
[419911710,1775499047734,-185.0,0.00023048,2]
[419911711,1775499047744,-2038.16615819,0.00023166,2]
[419911712,1775499047753,-528.17,0.0002317,10]
[419911713,1775499047762,-440.14,0.0002317,10]
[419911714,1775499047771,-5440.5962619,0.0002318,2]
[419911715,1775499047783,-12220.59014439,0.0002318,2]
[419911718,1775499356982,1038.34,0.000328,120]
[419911720,1775500003691,10000.0,0.00032877,120]
[419911734,1775500074171,1038.35,0.000328,120]
[419911848,1775500238030,-558.87689505,0.00013699,2]
[419912177,1775500243053,-441.12310495,0.00013699,2]
[419912179,1775500243063,-643.22742887,0.00021822,4]
[419912181,1775500243073,-8257.532732,0.00021922,2]
[419912183,1775500243083,-158.0,0.00022,2]
[419912185,1775500243092,-216.0,0.00022,2]
[419912187,1775500243101,-179.52853272,0.00022012,5]
[419912189,1775500243111,-186.038,0.00022511,2]
[419912191,1775500243120,-167.04483046,0.00022769,2]
[419912193,1775500243129,-500.0,0.00022769,2]
[419912195,1775500243139,-500.0,0.00022769,2]
[419912197,1775500243149,-170.23235453,0.00022769,2]
[419912199,1775500243159,-500.0,0.00022769,2]
[419912201,1775500243168,-500.0,0.00022769,2]
[419912203,1775500243178,-500.0,0.00022769,2]
[419912205,1775500243188,-500.0,0.00022769,2]
[419912207,1775500243200,-500.0,0.00022769,2]
[419912209,1775500243209,-500.0,0.00022769,2]
[419912211,1775500243219,-500.0,0.00022769,2]
[419912213,1775500243229,-510.43876244,0.00022769,2]
[419912215,1775500243238,-500.0,0.00022769,2]
[419912217,1775500243248,-500.0,0.00022769,2]
[419912219,1775500243257,-500.0,0.00022769,2]
[419912221,1775500243267,-500.0,0.00022769,2]
[419912223,1775500243277,-500.0,0.00022769,2]
[419912225,1775500243287,-500.0,0.00022769,2]
[419912227,1775500243297,-166.26319673,0.00022769,2]
[419912403,1775500246376,-153.01613466,0.00022769,2]
[419912405,1775500246385,-500.0,0.00022769,2]
[419912407,1775500246395,-500.0,0.00022769,2]
[419912409,1775500246404,-500.0,0.00022769,2]
[419912411,1775500246413,-500.0,0.00022769,2]
[419912413,1775500246422,-500.0,0.00022769,2]
[419912415,1775500246431,-500.0,0.00022769,2]
[419912417,1775500246441,-200.0,0.00022769,2]
[419912419,1775500246450,-500.0,0.00022769,2]
[419912421,1775500246459,-500.0,0.00022769,2]
[419912423,1775500246468,-500.0,0.00022769,2]
[419912425,1775500246478,-200.0,0.0002277,2]
[419912427,1775500246487,-166.963184,0.0002277,2]
[419912429,1775500246496,-166.963184,0.0002277,2]
[419912430,1775500246505,-166.963184,0.0002277,2]
[419912431,1775500246514,-166.963184,0.0002277,2]
[419912432,1775500246524,-109162.9239881,0.0002277,2]
[419912436,1775500248007,-34839.77053145,0.0002277,2]
[419912440,1775500971699,1038.35,0.000328,120]
[419912461,1775501431950,-758.80645586,0.00013699,2]
[419913180,1775501446313,-241.19354414,0.00013699,2]
[419913181,1775501446323,-1073.67926794,0.00016207,2]
[419913182,1775501446332,-158.397364,0.00021316,2]
[419913183,1775501446341,-164.0,0.00022,2]
[419913184,1775501446350,-158.0,0.00022,2]
[419913185,1775501446359,-225.0,0.00022,2]
[419913186,1775501446369,-156.0,0.00022215,2]
[419913187,1775501446379,-3515.55590314,0.00022285,2]
[419913188,1775501446388,-227.876,0.00022315,2]
[419913190,1775501446399,-500.0,0.00022373,2]
[419913192,1775501446408,-197.80363511,0.00022382,2]
[419913194,1775501446418,-55499.99,0.00022383,2]
[419913195,1775501446427,-32273.82054073,0.00022385,2]
[419913196,1775501446436,-195.052259,0.0002239,2]
[419913197,1775501446446,-196.3430609,0.0002239,2]
[419913198,1775501446456,-5110.99748982,0.00022456,2]
[419913199,1775501446465,-366.79,0.00022532,10]
[419913200,1775501446474,-305.65,0.00022532,10]
[419913201,1775501446483,-250.0,0.00022542,2]
[419913202,1775501446493,-187.78006527,0.00022542,2]
[419913203,1775501446502,-450.03215451,0.00022542,2]
[419913204,1775501446511,-500.0,0.00022542,2]
[419913205,1775501446521,-621.78829552,0.00022542,2]
[419913206,1775501446530,-2150.738,0.00022542,2]
[419913207,1775501446540,-537.6845,0.00022542,2]
[419913208,1775501446549,-621.31864514,0.00022554,2]
[419913209,1775501446558,-172.54658138,0.00022554,2]
[419913210,1775501446567,-500.0,0.00022554,2]
[419913211,1775501446577,-500.0,0.00022554,2]
[419913212,1775501446586,-500.0,0.00022554,2]
[419913213,1775501446595,-203.66006558,0.00022554,2]
[419913214,1775501446604,-500.0,0.00022554,2]
[419913215,1775501446614,-500.0,0.00022554,2]
[419913216,1775501446624,-500.0,0.00022554,2]
[419913217,1775501446633,-500.0,0.00022554,2]
[419913218,1775501446643,-500.0,0.00022554,2]
[419913219,1775501446652,-500.0,0.00022554,2]
[419913220,1775501446661,-500.0,0.00022554,2]
[419913221,1775501446670,-895.424582,0.00022555,2]
[419913222,1775501446679,-895.424582,0.00022555,2]
[419913223,1775501446689,-895.424582,0.00022555,2]
[419913224,1775501446698,-895.424582,0.00022555,2]
[419913225,1775501446707,-2159.551081,0.00022555,2]
[419913226,1775501446717,-2159.551081,0.00022555,2]
[419913227,1775501446726,-2159.551081,0.00022555,2]
[419913228,1775501446736,-2159.551081,0.00022555,2]
[419913229,1775501446745,-336.000276,0.00022555,2]
[419913230,1775501446942,-336.000276,0.00022555,2]
[419913231,1775501446961,-336.000276,0.00022555,2]
[419913232,1775501446971,-336.000276,0.00022555,2]
[419913233,1775501446979,-151.0,0.00022555,2]
[419913234,1775501446988,-151.0,0.00022555,2]
[419913235,1775501446998,-160.861666,0.00022555,2]
[419913236,1775501447007,-160.861666,0.00022555,2]
[419913237,1775501447016,-160.861666,0.00022555,2]
[419913238,1775501447026,-160.861666,0.00022555,2]
[419913239,1775501447035,-200.0,0.00022555,2]
[419913240,1775501447044,-240.227963,0.00022555,2]
[419913241,1775501447053,-240.227963,0.00022555,2]
[419913242,1775501447062,-240.227963,0.00022555,2]
[419913243,1775501447072,-202.415776,0.00022555,2]
[419913244,1775501447081,-240.227963,0.00022555,2]
[419913245,1775501447091,-202.415776,0.00022555,2]
[419913246,1775501447100,-202.415776,0.00022555,2]
[419913247,1775501447109,-202.415776,0.00022555,2]
[419913248,1775501447119,-151.286251,0.00022555,2]
[419913249,1775501447128,-151.286251,0.00022555,2]
[419913250,1775501447137,-151.286251,0.00022555,2]
[419913251,1775501447146,-151.286251,0.00022555,2]
[419913252,1775501447155,-163.625425,0.00022555,2]
[419913253,1775501447164,-163.625425,0.00022555,2]
[419913254,1775501447174,-163.625425,0.00022555,2]
[419913255,1775501447183,-163.625425,0.00022555,2]
[419913256,1775501447192,-344679.57671792,0.00022556,2]
[419913288,1775501450887,-708.61469847,0.00022556,2]
[419913289,1775501470208,2150.65,0.0003287,120]
[419913297,1775501929523,1038.35,0.000328,120]
[419913298,1775502080731,-559.06407012,0.00013699,2]
[419913313,1775502604824,12995.74297669,7.6e-05,2]
[419913314,1775502618447,648.2291472,5e-05,2]
[419913376,1775502638479,-5000.0,0.0001264,2]
[419913377,1775502638488,-5000.0,0.00012768,2]
[419913378,1775502638498,-601.0,0.00012768,2]
[419913379,1775502638507,-1200.0,0.00012896,2]
[419913380,1775502638517,-5000.0,0.00012897,2]
[419913381,1775502638526,-1000.0,0.00013699,2]
[419913382,1775502638535,-502.25451313,0.00017583,2]
[419913383,1775502638544,-151.0,0.00018494,2]
[419913384,1775502638553,-500.0,0.00018509,2]
[419913385,1775502638562,-500.0,0.00019434,2]
[419913386,1775502638571,-164.978727,0.00019766,2]
[419913387,1775502638580,-490.026013,0.00020984,2]
[419913388,1775502638589,-1382.7618041,0.0002143,2]
[419913390,1775502638599,-153.0,0.00022,2]
[419913392,1775502638607,-151.0,0.00022,2]
[419913394,1775502638616,-167.0,0.00022,2]
[419913395,1775502638625,-231.0,0.00022,2]
[419913397,1775502638633,-159.0,0.00022,2]
[419913399,1775502638643,-49406.22966532,0.00022,2]
[419913400,1775502638652,-945.78529727,0.000225,8]
[419913401,1775502638660,-2320.72059077,0.000225,8]
[419913402,1775502638669,-383.64982361,0.000225,8]
[419913403,1775502638678,-500.0,0.00022542,2]
[419913404,1775502638687,-2150.738,0.00022542,2]
[419913405,1775502638695,-287.93345395,0.00022542,2]
[419913406,1775502638704,-644.0,0.00022582,2]
[419913407,1775502638871,-184.0,0.00022582,2]
[419913408,1775502638882,-500.0,0.00022656,2]
[419913409,1775502638892,-151.0,0.00022656,2]
[419913410,1775502638901,-151.0,0.00022656,2]
[419913411,1775502638910,-151.0,0.00022656,2]
[419913412,1775502638919,-151.0,0.00022656,2]
[419913413,1775502638929,-151.0,0.00022656,2]
[419913414,1775502638938,-151.0,0.00022656,2]
[419913415,1775502638947,-500.0,0.00022669,2]
[419913416,1775502638955,-434.9230516,0.00022669,2]
[419913417,1775502638965,-500.0,0.00022669,2]
[419913418,1775502638975,-500.0,0.00022669,2]
[419913419,1775502638984,-500.0,0.00022669,2]
[419913420,1775502638993,-500.0,0.00022669,2]
[419913421,1775502639002,-500.0,0.00022669,2]
[419913422,1775502639011,-500.0,0.00022669,2]
[419913423,1775502639020,-500.0,0.00022669,2]
[419913424,1775502639030,-500.0,0.00022669,2]
[419913425,1775502639039,-500.0,0.00022669,2]
[419913426,1775502639048,-500.0,0.00022669,2]
[419913427,1775502639057,-229.82595736,0.00022669,2]
[419913428,1775502639067,-500.0,0.00022669,2]
[419913429,1775502639076,-500.0,0.00022669,2]
[419913430,1775502639086,-500.0,0.00022669,2]
[419913431,1775502639095,-500.0,0.00022669,2]
[419913432,1775502639104,-500.0,0.00022669,2]
[419913433,1775502639113,-500.0,0.00022669,2]
[419913434,1775502639122,-500.0,0.00022669,2]
[419913435,1775502639131,-500.0,0.00022669,2]
[419913436,1775502639140,-500.0,0.00022669,2]
[419913437,1775502639149,-310.87817015,0.00022669,2]
[419913438,1775502639158,-657526.63713666,0.0002267,2]
[419913439,1775502639646,-894826.17626354,0.0002267,2]
[419913728,1775502643584,-1000.0,0.000226,2]
[419913730,1775502643594,-11627.66902161,0.0002267,2]
[419913924,1775502646455,-5000.0,0.00022374,2]
[419913925,1775502646464,-914.82565904,0.0002267,2]
[419913926,1775502646476,-1094.18580591,0.0002267,2]
[419913940,1775503134245,427.85412795,0.00032876,120]
[419913955,1775503832591,-293.0,0.00013693,2]
[419913956,1775503832600,-327.0,0.00013693,2]
[419913957,1775503832610,-276.515803,0.00013694,2]
[419913958,1775503832621,-23.484197,0.00013694,2]
[419913959,1775503832631,-300.0,0.00013694,2]
[419913960,1775503832640,-38.93677061,0.00013694,2]
[419913989,1775503838546,-261.06322939,0.00013694,2]
[419913990,1775503838555,-300.0,0.00013694,2]
[419913991,1775503838565,-300.0,0.00013694,2]
[419913992,1775503838574,-61.49747047,0.00013694,2]
[419913993,1775503838586,-238.50252953,0.00013694,2]
[419913994,1775503838596,-300.0,0.00013694,2]
[419913995,1775503838606,-300.0,0.00013694,2]
[419913996,1775503838615,-300.0,0.00013694,2]
[419913997,1775503838625,-300.0,0.00013694,2]
[419913998,1775503838635,-300.0,0.00013694,2]
[419913999,1775503838644,-300.0,0.00013694,2]
[419914000,1775503838654,-300.0,0.00013694,2]
[419914001,1775503838663,-300.0,0.00013694,2]
[419914002,1775503838672,-300.0,0.00013694,2]
[419914003,1775503838682,-747.62071246,0.00013699,2]
[419914004,1775503838694,-252.37928754,0.00013699,2]
[419914005,1775503838703,-3307.9733926,0.00019567,2]
[419914006,1775503838712,-153.0,0.00022,2]
[419914007,1775503838721,-155.0,0.00022,2]
[419914008,1775503838730,-174.0,0.00022,2]
[419914009,1775503838739,-235.0,0.00022,2]
[419914010,1775503838748,-163.0,0.00022,2]
[419914011,1775503838758,-605.6488421,0.000224,7]
[419914012,1775503838767,-1540.77365255,0.00022557,2]
[419914013,1775503838776,-245.536,0.00022569,2]
[419914014,1775503838785,-685.78,0.0002257,2]
[419914015,1775503838794,-685.78,0.0002257,2]
[419914016,1775503838804,-685.78,0.0002257,2]
[419914017,1775503838813,-685.78,0.0002257,2]
[419914018,1775503838822,-685.78,0.0002257,2]
[419914019,1775503838831,-685.78,0.0002257,2]
[419914020,1775503838840,-685.78,0.0002257,2]
[419914021,1775503838849,-685.78,0.0002257,2]
[419914022,1775503838858,-685.78,0.0002257,2]
[419914023,1775503838867,-685.78,0.0002257,2]
[419914024,1775503838876,-685.78,0.0002257,2]
[419914025,1775503838885,-685.78,0.0002257,2]
[419914026,1775503838895,-977.69,0.0002257,2]
[419914027,1775503838905,-151.0,0.000227,5]
[419914028,1775503838914,-357.41998705,0.00022769,2]
[419914029,1775503838923,-1428.25026826,0.00022769,2]
[419914030,1775503838932,-165.5830292,0.00022769,2]
[419914031,1775503838941,-661.66978469,0.00022769,2]
[419914032,1775503838951,-655.08732718,0.000228,11]
[419914033,1775503838960,-600.0,0.00022918,10]
[419914034,1775503838969,-500.0,0.00022969,2]
[419914035,1775503838979,-500.0,0.00022969,2]
[419914036,1775503838988,-500.0,0.00022969,2]
[419914037,1775503838997,-500.0,0.00022969,2]
[419914038,1775503839008,-500.0,0.00022969,2]
[419914039,1775503839017,-500.0,0.00022969,2]
[419914040,1775503839026,-500.0,0.00022969,2]
[419914041,1775503839035,-500.0,0.00022969,2]
[419914042,1775503839044,-500.0,0.00022969,2]
[419914043,1775503839054,-290329.92958818,0.0002297,2]
[419914044,1775503839066,-52774.83036813,0.0002297,2]
[419914045,1775503839076,-1359.0,0.0002297,2]
[419914053,1775503841688,-748.61795487,0.0002297,2]
[419914054,1775503841699,-442.58507751,0.0002297,2]
[419914068,1775503846628,-254.71,0.0002296,10]
[419914069,1775503846637,-29221.26088553,0.0002297,2]
[419914070,1775503846649,-7696.54427869,0.0002297,2]
[419914073,1775504783277,-454.11775551,0.00034891,120]
[419914074,1775504783303,-1590.17,0.00034891,120]
[419914075,1775504783329,-500.0,0.00034891,120]
[419914076,1775504783356,-1886.59,0.00034891,120]
[419914077,1775504783613,-600.22002021,0.00034891,120]
[419914078,1775504783640,-1590.17,0.00034891,120]
[419914079,1775504783667,-1886.59,0.00034891,120]
[419914080,1775504783694,-1590.17,0.00034891,120]
[419914081,1775504783720,-1886.59,0.00034891,120]
[419914082,1775504783746,-1590.17,0.00034891,120]
[419914083,1775504783772,-1886.72016083,0.00034891,120]
[419914084,1775504783798,-1590.17,0.00034891,120]
[419914085,1775504783823,-1590.17,0.00034891,120]
[419914086,1775504783850,-1590.17,0.00034891,120]
[419914087,1775504783876,-1590.17,0.00034891,120]
[419914088,1775504783903,-1590.17,0.00034891,120]
[419914089,1775504783928,-1590.17,0.00034891,120]
[419914090,1775504783954,-1590.17,0.00034891,120]
[419914091,1775504783980,-1590.17,0.00034891,120]
[419914092,1775504784005,-525.03313308,0.00034891,120]
[419914093,1775504784031,-1590.17,0.00034891,120]
[419914094,1775504784057,-1590.17,0.00034891,120]
[419914095,1775504784082,-1590.32072222,0.00034891,120]
[419914096,1775504784106,-500.0,0.00034891,120]
[419914097,1775504784132,-316.93563362,0.00034891,120]
[419914098,1775504784157,-500.0,0.00034891,120]
[419914099,1775504784183,-990.78,0.00034891,120]
[419914100,1775504784207,-500.0,0.00034891,120]
[419914101,1775504784232,-990.78,0.00034891,120]
[419914102,1775504784258,-500.0,0.00034891,120]